[Event "*** Qualifier 4: Titled Tuesday 3|2 Blitz"]
[Site "Chess.com"]
[Date "2017.04.25"]
[Round "9"]
[White "GM_Huschenbeth"]
[Black "feigelag"]
[Result "1-0"]
[WhiteElo "2383"]
[BlackElo "2327"]
[TimeControl "180+2"]
[EndTime "14:54:13 PDT"]
[Termination "GM_Huschenbeth won by resignation"]

1. e4 {[%clk 0:03:02]} 1... c6 {[%clk 0:03:01.1]} 2. d4 {[%clk 0:03:02.9]} 2...
d5 {[%clk 0:03:02.4]} 3. e5 {[%clk 0:03:04.6]} 3... Bf5 {[%clk 0:03:03]} 4. Nf3
{[%clk 0:03:05.9]} 4... e6 {[%clk 0:03:04.2]} 5. Be2 {[%clk 0:03:07.6]} 5... a6
{[%clk 0:03:05.3]} 6. O-O {[%clk 0:03:08.6]} 6... c5 {[%clk 0:03:05.8]} 7. Be3
{[%clk 0:03:08]} 7... Nd7 {[%clk 0:03:01.6]} 8. c4 {[%clk 0:03:04.4]} 8... Ne7
{[%clk 0:03:00.2]} 9. Nc3 {[%clk 0:03:00.8]} 9... dxc4 {[%clk 0:02:55.1]} 10.
Bxc4 {[%clk 0:03:02.7]} 10... Nc6 {[%clk 0:02:55.6]} 11. Bb3 {[%clk 0:02:45.3]}
11... cxd4 {[%clk 0:02:49.1]} 12. Nxd4 {[%clk 0:02:45.2]} 12... Nxd4 {[%clk
0:02:46]} 13. Bxd4 {[%clk 0:02:44.1]} 13... Bc5 {[%clk 0:02:41.6]} 14. Bxc5
{[%clk 0:02:03]} 14... Nxc5 {[%clk 0:02:43.5]} 15. Qf3 {[%clk 0:02:04.1]} 15...
Nxb3 {[%clk 0:02:29]} 16. axb3 {[%clk 0:02:06]} 16... O-O {[%clk 0:02:29.2]} 17.
Qxb7 {[%clk 0:02:04.7]} 17... Qb8 {[%clk 0:02:08.6]} 18. Qxb8 {[%clk 0:01:47.2]}
18... Rfxb8 {[%clk 0:02:10.5]} 19. Ra3 {[%clk 0:01:48.4]} 19... Rb4 {[%clk
0:01:53.5]} 20. Rfa1 {[%clk 0:01:47.5]} 20... Bd3 {[%clk 0:01:53.6]} 21. Rd1
{[%clk 0:01:36.4]} 21... Bc2 {[%clk 0:01:04.4]} 22. Rd2 {[%clk 0:01:37.4]} 22...
Bxb3 {[%clk 0:01:01.3]} 23. Rxa6 {[%clk 0:01:39]} 23... Rc8 {[%clk 0:00:54.1]}
24. Rad6 {[%clk 0:01:38]} 24... h6 {[%clk 0:00:51.1]} 25. g3 {[%clk 0:01:20.2]}
25... Bc4 {[%clk 0:00:40.1]} 26. Rd8+ {[%clk 0:01:18.3]} 26... Rxd8 {[%clk
0:00:40.9]} 27. Rxd8+ {[%clk 0:01:20.2]} 27... Kh7 {[%clk 0:00:42.3]} 28. Rd4
{[%clk 0:01:21.8]} 28... Kg6 {[%clk 0:00:34.4]} 29. b3 {[%clk 0:01:22.9]} 1-0

[Event "*** Qualifier 4: Titled Tuesday 3|2 Blitz"]
[Site "Chess.com"]
[Date "2017.04.25"]
[Round "9"]
[White "politeplayer"]
[Black "Gordima"]
[Result "0-1"]
[WhiteElo "2184"]
[BlackElo "2510"]
[TimeControl "180+2"]
[EndTime "14:54:15 PDT"]
[Termination "Gordima won by resignation"]

1. e4 {[%clk 0:03:01.2]} 1... g6 {[%clk 0:03:00.8]} 2. d4 {[%clk 0:03:01.4]}
2... Bg7 {[%clk 0:03:02.1]} 3. Nc3 {[%clk 0:03:03]} 3... d6 {[%clk 0:03:03.3]}
4. f4 {[%clk 0:03:04.3]} 4... a6 {[%clk 0:03:04.7]} 5. Nf3 {[%clk 0:03:05.6]}
5... b5 {[%clk 0:03:05.6]} 6. e5 {[%clk 0:02:57.9]} 6... Bb7 {[%clk 0:03:04.6]}
7. e6 {[%clk 0:02:36.3]} 7... fxe6 {[%clk 0:03:02.3]} 8. Ng5 {[%clk 0:02:36.6]}
8... Qd7 {[%clk 0:02:54.9]} 9. Qg4 {[%clk 0:02:25.7]} 9... Nh6 {[%clk
0:02:46.2]} 10. Qxe6 {[%clk 0:02:22]} 10... Bxd4 {[%clk 0:02:46.5]} 11. Nd5
{[%clk 0:02:04.6]} 11... c6 {[%clk 0:02:21.6]} 12. Be3 {[%clk 0:01:51.2]} 12...
Bxb2 {[%clk 0:02:15.4]} 13. Rb1 {[%clk 0:01:04.8]} 13... Qxe6 {[%clk 0:02:04.7]}
14. Nc7+ {[%clk 0:00:58.7]} 14... Kd7 {[%clk 0:02:03.7]} 15. Ngxe6 {[%clk
0:00:54.5]} 15... Bc3+ {[%clk 0:02:04.4]} 16. Kd1 {[%clk 0:00:53.1]} 16... Nf5
{[%clk 0:02:03.8]} 17. Bf2 {[%clk 0:00:47.3]} 17... c5 {[%clk 0:02:04.1]} 18.
Bd3 {[%clk 0:00:20]} 18... Ra7 {[%clk 0:01:58.7]} 19. Rg1 {[%clk 0:00:18]} 19...
Rc8 {[%clk 0:01:56.3]} 20. g4 {[%clk 0:00:17.5]} 20... Nd4 {[%clk 0:01:55.1]}
21. Nxd4 {[%clk 0:00:16.1]} 21... Bxd4 {[%clk 0:01:55.4]} 22. Bxd4 {[%clk
0:00:16.1]} 22... cxd4 {[%clk 0:01:57.3]} 23. Bxb5+ {[%clk 0:00:14.4]} 23...
axb5 {[%clk 0:01:58]} 24. Nxb5 {[%clk 0:00:15.8]} 24... Bf3+ {[%clk 0:01:56.6]}
25. Kd2 {[%clk 0:00:15.3]} 25... Rb7 {[%clk 0:01:56.9]} 26. Nxd4 {[%clk
0:00:13.2]} 26... Rxb1 {[%clk 0:01:57.7]} 27. Rxb1 {[%clk 0:00:14.3]} 27... Bxg4
{[%clk 0:01:58.2]} 28. Rb7+ {[%clk 0:00:13.6]} 28... Kd8 {[%clk 0:01:59.4]} 29.
Rxb8 {[%clk 0:00:13.9]} 29... Rxb8 {[%clk 0:01:59.4]} 30. Nc6+ {[%clk
0:00:15.4]} 30... Kc7 {[%clk 0:02:01.1]} 31. Nxb8 {[%clk 0:00:16.5]} 31... Kxb8
{[%clk 0:02:02.6]} 0-1

[Event "*** Qualifier 4: Titled Tuesday 3|2 Blitz"]
[Site "Chess.com"]
[Date "2017.04.25"]
[Round "9"]
[White "abubakrtagelsir"]
[Black "theprosecution1"]
[Result "0-1"]
[WhiteElo "2162"]
[BlackElo "2609"]
[TimeControl "180+2"]
[EndTime "14:54:17 PDT"]
[Termination "theprosecution1 won by resignation"]

1. e4 {[%clk 0:02:58.5]} 1... c5 {[%clk 0:03:00.1]} 2. Nc3 {[%clk 0:02:59]} 2...
Nc6 {[%clk 0:03:01.1]} 3. f4 {[%clk 0:02:59.5]} 3... g6 {[%clk 0:03:02.6]} 4.
Nf3 {[%clk 0:02:59.7]} 4... Bg7 {[%clk 0:03:04.2]} 5. Bb5 {[%clk 0:03:00]} 5...
Nd4 {[%clk 0:03:05.5]} 6. O-O {[%clk 0:03:00.1]} 6... a6 {[%clk 0:03:06.1]} 7.
Bc4 {[%clk 0:03:00.4]} 7... b5 {[%clk 0:03:06.4]} 8. Bd5 {[%clk 0:03:01]} 8...
Ra7 {[%clk 0:03:06.5]} 9. d3 {[%clk 0:03:01.2]} 9... e6 {[%clk 0:03:05.3]} 10.
Bb3 {[%clk 0:03:01.2]} 10... d5 {[%clk 0:03:06.6]} 11. exd5 {[%clk 0:02:56.5]}
11... exd5 {[%clk 0:03:05.6]} 12. Nxd4 {[%clk 0:02:36.3]} 12... Bxd4+ {[%clk
0:03:02.8]} 13. Kh1 {[%clk 0:02:36.5]} 13... c4 {[%clk 0:03:04.7]} 14. Nxd5
{[%clk 0:01:39.3]} 14... cxb3 {[%clk 0:03:02.5]} 15. c4 {[%clk 0:01:34.2]} 15...
Nf6 {[%clk 0:02:57.3]} 16. Qe2+ {[%clk 0:01:24.9]} 16... Kf8 {[%clk 0:02:58.1]}
17. f5 {[%clk 0:01:25.2]} 17... Nxd5 {[%clk 0:02:53.2]} 18. Bh6+ {[%clk
0:01:24.4]} 18... Kg8 {[%clk 0:02:52.8]} 19. cxd5 {[%clk 0:01:17.6]} 19... Bxf5
{[%clk 0:02:23.8]} 20. Rae1 {[%clk 0:01:12.4]} 20... Ra8 {[%clk 0:02:10.3]} 21.
g4 {[%clk 0:00:16.9]} 21... Qxd5+ {[%clk 0:02:09.3]} 22. Rf3 {[%clk 0:00:17.3]}
22... Be6 {[%clk 0:02:05.3]} 23. axb3 {[%clk 0:00:17.8]} 23... Bg7 {[%clk
0:02:03.6]} 24. Bxg7 {[%clk 0:00:17.1]} 24... Kxg7 {[%clk 0:02:05.5]} 25. Kg1
{[%clk 0:00:17.8]} 25... Rhe8 {[%clk 0:02:03.7]} 26. Re3 {[%clk 0:00:18.3]}
26... Kg8 {[%clk 0:02:04.7]} 27. h3 {[%clk 0:00:17.7]} 27... Qxb3 {[%clk
0:02:05.7]} 28. Qf3 {[%clk 0:00:17.1]} 28... Rad8 {[%clk 0:02:02.4]} 29. h4
{[%clk 0:00:17.3]} 29... Qd5 {[%clk 0:02:03.9]} 30. Qf4 {[%clk 0:00:17.2]} 30...
Qd4 {[%clk 0:02:04.4]} 31. Qf2 {[%clk 0:00:14.9]} 31... Qxg4+ {[%clk 0:02:05.1]}
0-1

[Event "*** Qualifier 4: Titled Tuesday 3|2 Blitz"]
[Site "Chess.com"]
[Date "2017.04.25"]
[Round "9"]
[White "Gabrielian_Artur"]
[Black "indfraeng"]
[Result "1-0"]
[WhiteElo "2549"]
[BlackElo "1800"]
[TimeControl "180+2"]
[EndTime "14:55:34 PDT"]
[Termination "Gabrielian_Artur won by checkmate"]

1. d4 {[%clk 0:03:00.2]} 1... Nf6 {[%clk 0:03:00.4]} 2. c4 {[%clk 0:03:00.7]}
2... c5 {[%clk 0:02:59.9]} 3. d5 {[%clk 0:03:01.5]} 3... e6 {[%clk 0:03:00.8]}
4. Nc3 {[%clk 0:03:02.3]} 4... exd5 {[%clk 0:03:01.4]} 5. cxd5 {[%clk
0:03:03.9]} 5... d6 {[%clk 0:03:01.1]} 6. Nf3 {[%clk 0:03:04.8]} 6... g6 {[%clk
0:03:01.4]} 7. Bf4 {[%clk 0:02:53.6]} 7... Bg7 {[%clk 0:02:59.9]} 8. Qa4+ {[%clk
0:02:53.4]} 8... Bd7 {[%clk 0:02:37.2]} 9. Qb3 {[%clk 0:02:46.2]} 9... Qc7
{[%clk 0:02:35.5]} 10. e4 {[%clk 0:02:43.1]} 10... O-O {[%clk 0:02:33.7]} 11.
Nd2 {[%clk 0:02:33.1]} 11... Re8 {[%clk 0:02:29.1]} 12. Be2 {[%clk 0:02:29.1]}
12... a5 {[%clk 0:02:28.1]} 13. O-O {[%clk 0:02:25.1]} 13... a4 {[%clk
0:02:27.1]} 14. Qc2 {[%clk 0:02:25]} 14... Na6 {[%clk 0:02:25.5]} 15. a3 {[%clk
0:02:25.3]} 15... Rab8 {[%clk 0:02:22]} 16. Nc4 {[%clk 0:02:23.2]} 16... Bf8
{[%clk 0:02:16.3]} 17. Bg5 {[%clk 0:02:12.1]} 17... Bg7 {[%clk 0:01:56.3]} 18.
e5 {[%clk 0:02:09]} 18... dxe5 {[%clk 0:01:52.9]} 19. d6 {[%clk 0:02:10.3]}
19... Qd8 {[%clk 0:01:51.4]} 20. Nd5 {[%clk 0:02:07]} 20... b5 {[%clk 0:01:49]}
21. Ne7+ {[%clk 0:02:07.9]} 21... Rxe7 {[%clk 0:01:36.6]} 22. dxe7 {[%clk
0:02:08.6]} 22... Qxe7 {[%clk 0:01:37.5]} 23. Ne3 {[%clk 0:02:09.9]} 23... b4
{[%clk 0:01:33.1]} 24. Nd5 {[%clk 0:02:10.5]} 24... Qe6 {[%clk 0:01:27.6]} 25.
Nxf6+ {[%clk 0:02:10.8]} 25... Bxf6 {[%clk 0:01:28.2]} 26. Bxf6 {[%clk
0:02:11.9]} 26... Qxf6 {[%clk 0:01:29.2]} 27. axb4 {[%clk 0:02:05.3]} 27... cxb4
{[%clk 0:01:26.5]} 28. Bxa6 {[%clk 0:02:05.2]} 28... Qxa6 {[%clk 0:01:25.9]} 29.
Qc7 {[%clk 0:02:06.3]} 29... Rb7 {[%clk 0:01:07.2]} 30. Qxe5 {[%clk 0:02:05.1]}
30... a3 {[%clk 0:00:54.6]} 31. bxa3 {[%clk 0:02:04.6]} 31... bxa3 {[%clk
0:00:54.5]} 32. Rfc1 {[%clk 0:01:38.1]} 32... a2 {[%clk 0:00:51.6]} 33. h3
{[%clk 0:01:38.8]} 33... Qe6 {[%clk 0:00:30.4]} 34. Qa5 {[%clk 0:01:26.1]} 34...
Rb2 {[%clk 0:00:20.4]} 35. Qc3 {[%clk 0:01:19.6]} 35... Qe3 {[%clk 0:00:20.5]}
36. Qxe3 {[%clk 0:01:19.9]} 36... Rb1 {[%clk 0:00:20.3]} 37. Rcxb1 {[%clk
0:01:20.4]} 37... axb1=Q+ {[%clk 0:00:21.2]} 38. Rxb1 {[%clk 0:01:21.6]} 38...
Be6 {[%clk 0:00:20.9]} 39. Qe5 {[%clk 0:01:21.8]} 39... Bc8 {[%clk 0:00:19.9]}
40. Rb8 {[%clk 0:01:21.9]} 40... f6 {[%clk 0:00:21.1]} 41. Rxc8+ {[%clk
0:01:23]} 41... Kf7 {[%clk 0:00:21.3]} 42. Qe8+ {[%clk 0:01:23.8]} 42... Kg7
{[%clk 0:00:18.1]} 43. Qf8# {[%clk 0:01:24.9]} 1-0

[Event "*** Qualifier 4: Titled Tuesday 3|2 Blitz"]
[Site "Chess.com"]
[Date "2017.04.25"]
[Round "9"]
[White "amaidel"]
[Black "rasool78"]
[Result "0-1"]
[WhiteElo "2380"]
[BlackElo "2242"]
[TimeControl "180+2"]
[EndTime "14:55:44 PDT"]
[Termination "rasool78 won by resignation"]

1. Nf3 {[%clk 0:03:02]} 1... g6 {[%clk 0:03:00.7]} 2. e4 {[%clk 0:03:02.2]} 2...
Bg7 {[%clk 0:03:02.1]} 3. d4 {[%clk 0:03:03.2]} 3... c5 {[%clk 0:03:03.6]} 4.
dxc5 {[%clk 0:03:02.3]} 4... Qa5+ {[%clk 0:03:04.2]} 5. c3 {[%clk 0:03:02]} 5...
Qxc5 {[%clk 0:03:04.7]} 6. Be2 {[%clk 0:03:03.1]} 6... d6 {[%clk 0:03:03.7]} 7.
O-O {[%clk 0:03:02.5]} 7... Nf6 {[%clk 0:03:02.8]} 8. Be3 {[%clk 0:03:03.3]}
8... Qc7 {[%clk 0:03:03.5]} 9. Nbd2 {[%clk 0:03:03.4]} 9... Nbd7 {[%clk
0:03:02.8]} 10. h3 {[%clk 0:03:03.9]} 10... O-O {[%clk 0:03:03.1]} 11. Re1
{[%clk 0:03:03.1]} 11... b6 {[%clk 0:03:00.9]} 12. Nd4 {[%clk 0:03:03.3]} 12...
Bb7 {[%clk 0:03:00.3]} 13. f3 {[%clk 0:03:02.1]} 13... a6 {[%clk 0:02:58]} 14.
c4 {[%clk 0:02:59.6]} 14... Nc5 {[%clk 0:02:33.7]} 15. Rc1 {[%clk 0:02:57.7]}
15... e5 {[%clk 0:02:30.6]} 16. N4b3 {[%clk 0:02:55]} 16... a5 {[%clk
0:02:31.4]} 17. Nxc5 {[%clk 0:02:52.7]} 17... dxc5 {[%clk 0:02:29.9]} 18. Nf1
{[%clk 0:02:53.5]} 18... Nd7 {[%clk 0:02:11.7]} 19. Bf2 {[%clk 0:02:41.7]} 19...
f5 {[%clk 0:02:10.6]} 20. exf5 {[%clk 0:02:38.3]} 20... gxf5 {[%clk 0:02:09.8]}
21. Ne3 {[%clk 0:02:38.9]} 21... e4 {[%clk 0:01:56.2]} 22. Nd5 {[%clk
0:02:39.7]} 22... Qe5 {[%clk 0:01:35.9]} 23. f4 {[%clk 0:02:36.2]} 23... Qd6
{[%clk 0:01:29.6]} 24. Bh4 {[%clk 0:02:32.3]} 24... Bxd5 {[%clk 0:01:21.4]} 25.
Qxd5+ {[%clk 0:02:32.8]} 25... Qxd5 {[%clk 0:01:22.1]} 26. cxd5 {[%clk
0:02:34.7]} 26... Bxb2 {[%clk 0:01:21]} 27. Rb1 {[%clk 0:02:34.2]} 27... Bd4+
{[%clk 0:01:19.7]} 28. Kf1 {[%clk 0:02:33.8]} 28... Rab8 {[%clk 0:01:08.3]} 29.
Be7 {[%clk 0:02:33.9]} 29... Rf7 {[%clk 0:01:01.1]} 30. d6 {[%clk 0:02:35]}
30... Rxe7 {[%clk 0:00:51.1]} 31. dxe7 {[%clk 0:02:35.1]} 31... Kf7 {[%clk
0:00:52.6]} 32. g4 {[%clk 0:02:35.7]} 32... Kxe7 {[%clk 0:00:49.1]} 33. gxf5
{[%clk 0:02:32.4]} 33... Rg8 {[%clk 0:00:30.5]} 34. Bg4 {[%clk 0:02:32]} 34...
e3 {[%clk 0:00:24.9]} 35. Ke2 {[%clk 0:02:31.5]} 35... h5 {[%clk 0:00:20.2]} 36.
Bxh5 {[%clk 0:02:23.1]} 36... Rg2+ {[%clk 0:00:20.6]} 37. Kf3 {[%clk 0:02:24]}
37... Rxa2 {[%clk 0:00:18.9]} 38. Re2 {[%clk 0:02:21.8]} 38... Rxe2 {[%clk
0:00:15.4]} 39. Kxe2 {[%clk 0:02:22.8]} 39... a4 {[%clk 0:00:16.5]} 40. f6+
{[%clk 0:01:31.1]} 40... Nxf6 {[%clk 0:00:17.6]} 41. Rxb6 {[%clk 0:01:32.6]}
41... Nxh5 {[%clk 0:00:17.8]} 42. Ra6 {[%clk 0:01:34.2]} 42... Nxf4+ {[%clk
0:00:17.9]} 43. Ke1 {[%clk 0:01:32.1]} 43... Bc3+ {[%clk 0:00:18.1]} 44. Kd1
{[%clk 0:01:31.8]} 44... e2+ {[%clk 0:00:19.3]} 45. Kc2 {[%clk 0:01:33.3]} 45...
e1=Q {[%clk 0:00:20.7]} 0-1

[Event "*** Qualifier 4: Titled Tuesday 3|2 Blitz"]
[Site "Chess.com"]
[Date "2017.04.25"]
[Round "9"]
[White "LyonBeast"]
[Black "GGuseinov"]
[Result "1/2-1/2"]
[WhiteElo "2813"]
[BlackElo "2741"]
[TimeControl "180+2"]
[EndTime "14:56:09 PDT"]
[Termination "Game drawn by repetition"]

1. e4 {[%clk 0:03:02]} 1... c5 {[%clk 0:03:00.4]} 2. Nf3 {[%clk 0:03:03.2]} 2...
g6 {[%clk 0:03:01.2]} 3. d4 {[%clk 0:02:58.2]} 3... cxd4 {[%clk 0:03:02.1]} 4.
Qxd4 {[%clk 0:02:59.2]} 4... Nf6 {[%clk 0:03:03.1]} 5. Bb5 {[%clk 0:02:59.3]}
5... a6 {[%clk 0:03:02.8]} 6. e5 {[%clk 0:02:55.9]} 6... axb5 {[%clk 0:03:03.7]}
7. exf6 {[%clk 0:02:56.9]} 7... Nc6 {[%clk 0:03:04.7]} 8. fxe7 {[%clk
0:02:36.6]} 8... Qxe7+ {[%clk 0:03:04.8]} 9. Qe3 {[%clk 0:02:38.1]} 9... Qxe3+
{[%clk 0:02:58.3]} 10. Bxe3 {[%clk 0:02:35.9]} 10... b4 {[%clk 0:02:59.6]} 11.
Nbd2 {[%clk 0:02:27.6]} 11... Bg7 {[%clk 0:02:49.8]} 12. Nc4 {[%clk 0:02:27.5]}
12... O-O {[%clk 0:02:46]} 13. O-O {[%clk 0:02:18.7]} 13... d5 {[%clk
0:02:40.2]} 14. Nb6 {[%clk 0:02:13]} 14... Ra6 {[%clk 0:02:38.8]} 15. Nxd5
{[%clk 0:02:04.9]} 15... Bxb2 {[%clk 0:02:37.5]} 16. Rad1 {[%clk 0:01:58.7]}
16... Rxa2 {[%clk 0:02:26.8]} 17. Bc5 {[%clk 0:01:59]} 17... Re8 {[%clk
0:02:25.2]} 18. Nd4 {[%clk 0:01:53.1]} 18... Bxd4 {[%clk 0:02:03.2]} 19. Bxd4
{[%clk 0:01:39.2]} 19... Nxd4 {[%clk 0:02:00.7]} 20. Rxd4 {[%clk 0:01:34.7]}
20... Kg7 {[%clk 0:01:56.9]} 21. Nxb4 {[%clk 0:01:34.3]} 21... Rb2 {[%clk
0:01:53.8]} 22. h3 {[%clk 0:01:30.7]} 22... Bf5 {[%clk 0:01:46.3]} 23. Rc1
{[%clk 0:01:24.3]} 23... h5 {[%clk 0:01:34.6]} 24. Nd3 {[%clk 0:01:20.6]} 24...
Bxd3 {[%clk 0:01:32.4]} 25. Rxd3 {[%clk 0:01:22.5]} 25... Re2 {[%clk 0:01:30.9]}
26. Rd7 {[%clk 0:01:17.8]} 26... b5 {[%clk 0:01:27.9]} 27. Rb7 {[%clk
0:01:18.8]} 27... g5 {[%clk 0:01:07.6]} 28. Kf1 {[%clk 0:01:16.8]} 28... Rd2
{[%clk 0:01:07.1]} 29. g3 {[%clk 0:01:09.8]} 29... b4 {[%clk 0:01:03]} 30. Rb5
{[%clk 0:01:09.1]} 30... Kg6 {[%clk 0:00:59.9]} 31. Kg2 {[%clk 0:01:08.8]} 31...
f6 {[%clk 0:00:58.3]} 32. Kg1 {[%clk 0:01:06.3]} 32... Rd4 {[%clk 0:00:37.6]}
33. Rc5 {[%clk 0:00:57.8]} 33... Rd2 {[%clk 0:00:36]} 34. Rb5 {[%clk 0:00:57.6]}
34... Rd4 {[%clk 0:00:35.8]} 35. Rc5 {[%clk 0:00:58.7]} 35... h4 {[%clk
0:00:32.7]} 36. g4 {[%clk 0:00:46.5]} 36... Rd2 {[%clk 0:00:24.2]} 37. Rb5
{[%clk 0:00:46.7]} 37... Rd4 {[%clk 0:00:24.9]} 38. Rc5 {[%clk 0:00:47.6]} 38...
b3 {[%clk 0:00:26.2]} 39. Rc3 {[%clk 0:00:44.4]} 39... bxc2 {[%clk 0:00:16]} 40.
R3xc2 {[%clk 0:00:45.9]} 40... Rb3 {[%clk 0:00:15.7]} 41. Rc3 {[%clk 0:00:46.4]}
41... Rb2 {[%clk 0:00:16.7]} 42. R3c2 {[%clk 0:00:47.5]} 42... Rb3 {[%clk
0:00:17.8]} 43. Rc3 {[%clk 0:00:48.8]} 43... Rb2 {[%clk 0:00:19.1]} 44. R3c2
{[%clk 0:00:50.1]} 1/2-1/2

[Event "*** Qualifier 4: Titled Tuesday 3|2 Blitz"]
[Site "Chess.com"]
[Date "2017.04.25"]
[Round "9"]
[White "Robin-Side"]
[Black "Mbneu"]
[Result "1-0"]
[WhiteElo "2290"]
[BlackElo "2160"]
[TimeControl "180+2"]
[EndTime "14:56:19 PDT"]
[Termination "Robin-Side won by resignation"]

1. e4 {[%clk 0:03:02]} 1... e5 {[%clk 0:03:00.6]} 2. f4 {[%clk 0:03:02.4]} 2...
Bc5 {[%clk 0:02:59.3]} 3. Nf3 {[%clk 0:03:02.8]} 3... d5 {[%clk 0:03:00.7]} 4.
Nxe5 {[%clk 0:02:35.7]} 4... dxe4 {[%clk 0:03:00]} 5. Nxf7 {[%clk 0:02:19.6]}
5... Bf2+ {[%clk 0:02:45.8]} 6. Kxf2 {[%clk 0:02:15.6]} 6... Kxf7 {[%clk
0:02:46.1]} 7. Qh5+ {[%clk 0:02:11]} 7... g6 {[%clk 0:02:45.5]} 8. Bc4+ {[%clk
0:02:09.7]} 8... Kg7 {[%clk 0:02:45.4]} 9. Qe5+ {[%clk 0:02:00.7]} 9... Nf6
{[%clk 0:02:45.5]} 10. b4 {[%clk 0:01:33.5]} 10... Nc6 {[%clk 0:02:02.4]} 11.
Qc3 {[%clk 0:01:31.9]} 11... Nd4 {[%clk 0:02:02]} 12. Rf1 {[%clk 0:01:04.4]}
12... e3+ {[%clk 0:01:57.6]} 13. Kg1 {[%clk 0:00:42.3]} 13... b5 {[%clk
0:01:25.4]} 14. dxe3 {[%clk 0:00:29.6]} 14... Nf5 {[%clk 0:01:17.6]} 15. Be2
{[%clk 0:00:07.4]} 15... h5 {[%clk 0:01:05.5]} 16. Bb2 {[%clk 0:00:07.9]} 16...
Rf8 {[%clk 0:01:05.7]} 17. e4 {[%clk 0:00:07.8]} 17... Nh6 {[%clk 0:00:56.8]}
18. e5 {[%clk 0:00:07.5]} 18... Nd5 {[%clk 0:00:56.9]} 19. Qd4 {[%clk
0:00:05.3]} 19... Nf5 {[%clk 0:00:52.3]} 20. Qf2 {[%clk 0:00:04.2]} 20... Be6
{[%clk 0:00:49.3]} 21. Nd2 {[%clk 0:00:04.2]} 21... Nxb4 {[%clk 0:00:49.6]} 22.
Ne4 {[%clk 0:00:04.8]} 22... Nxc2 {[%clk 0:00:36.1]} 23. Rac1 {[%clk 0:00:03]}
23... Nce3 {[%clk 0:00:36]} 24. Rfe1 {[%clk 0:00:03.7]} 24... Qe7 {[%clk
0:00:28.9]} 25. Bf3 {[%clk 0:00:04.4]} 25... Nc4 {[%clk 0:00:27.6]} 26. Ba1
{[%clk 0:00:04.5]} 26... Rad8 {[%clk 0:00:26.9]} 27. Ng5 {[%clk 0:00:05.4]}
27... Rd2 {[%clk 0:00:26.3]} 28. Qxa7 {[%clk 0:00:03.9]} 28... h4 {[%clk
0:00:20.5]} 29. Qxc7 {[%clk 0:00:04.8]} 29... Qxc7 {[%clk 0:00:20.7]} 30. Nxe6+
{[%clk 0:00:05.4]} 30... Kh6 {[%clk 0:00:21.3]} 31. Nxc7 {[%clk 0:00:06.5]}
31... Na3 {[%clk 0:00:21.1]} 32. Re2 {[%clk 0:00:05.1]} 32... Rd3 {[%clk
0:00:18.4]} 33. Be4 {[%clk 0:00:04.8]} 33... Rd4 {[%clk 0:00:19]} 34. Bxf5
{[%clk 0:00:05.7]} 34... Rxf5 {[%clk 0:00:20.6]} 35. Bxd4 {[%clk 0:00:06.5]}
35... b4 {[%clk 0:00:20.8]} 36. e6 {[%clk 0:00:06.1]} 36... Rxf4 {[%clk
0:00:21.4]} 37. Be3 {[%clk 0:00:06.3]} 1-0

[Event "*** Qualifier 4: Titled Tuesday 3|2 Blitz"]
[Site "Chess.com"]
[Date "2017.04.25"]
[Round "9"]
[White "AkshatChandra"]
[Black "GMBenjaminBok"]
[Result "1-0"]
[WhiteElo "2691"]
[BlackElo "2636"]
[TimeControl "180+2"]
[EndTime "14:56:22 PDT"]
[Termination "AkshatChandra won by resignation"]

1. e4 {[%clk 0:02:51.4]} 1... g6 {[%clk 0:03:00.9]} 2. d4 {[%clk 0:02:52.3]}
2... Bg7 {[%clk 0:03:02.2]} 3. Nc3 {[%clk 0:02:54]} 3... d6 {[%clk 0:03:03.5]}
4. Be3 {[%clk 0:02:55.6]} 4... a6 {[%clk 0:03:04.5]} 5. h4 {[%clk 0:02:56.5]}
5... h5 {[%clk 0:03:03.5]} 6. Qd2 {[%clk 0:02:56.8]} 6... b5 {[%clk 0:03:04.5]}
7. O-O-O {[%clk 0:02:56.6]} 7... Bb7 {[%clk 0:03:05.3]} 8. f3 {[%clk 0:02:56.8]}
8... Nd7 {[%clk 0:03:05.7]} 9. Nh3 {[%clk 0:02:57.1]} 9... Ngf6 {[%clk
0:03:06.6]} 10. Ng5 {[%clk 0:02:51.9]} 10... e6 {[%clk 0:03:07.6]} 11. Kb1
{[%clk 0:02:50.5]} 11... Qe7 {[%clk 0:03:08.5]} 12. a3 {[%clk 0:02:46.8]} 12...
Rc8 {[%clk 0:03:06.8]} 13. Be2 {[%clk 0:02:42.4]} 13... c5 {[%clk 0:03:07.4]}
14. dxc5 {[%clk 0:02:42.8]} 14... dxc5 {[%clk 0:03:08]} 15. Bf4 {[%clk
0:02:25.4]} 15... e5 {[%clk 0:03:05.1]} 16. Be3 {[%clk 0:02:25.5]} 16... O-O
{[%clk 0:02:51.7]} 17. g4 {[%clk 0:02:25.6]} 17... b4 {[%clk 0:02:49.2]} 18.
axb4 {[%clk 0:02:25.7]} 18... cxb4 {[%clk 0:02:50.2]} 19. Nd5 {[%clk 0:02:27.3]}
19... Bxd5 {[%clk 0:02:47.5]} 20. exd5 {[%clk 0:02:27.9]} 20... b3 {[%clk
0:02:47.2]} 21. d6 {[%clk 0:02:26.5]} 21... bxc2+ {[%clk 0:02:07.5]} 22. Qxc2
{[%clk 0:02:23.2]} 22... Qd8 {[%clk 0:02:04.3]} 23. Qb3 {[%clk 0:02:08.3]} 23...
Rb8 {[%clk 0:01:47.8]} 24. Qa2 {[%clk 0:02:06.5]} 24... e4 {[%clk 0:01:32.3]}
25. Bd4 {[%clk 0:02:02.7]} 25... hxg4 {[%clk 0:00:48.8]} 26. fxe4 {[%clk
0:01:46.3]} 26... Qe8 {[%clk 0:00:33.7]} 27. Bd3 {[%clk 0:01:38.2]} 27... Ne5
{[%clk 0:00:33.5]} 28. Bc2 {[%clk 0:01:36.3]} 28... Nfd7 {[%clk 0:00:31.3]} 29.
Rhf1 {[%clk 0:01:33.7]} 29... Rb4 {[%clk 0:00:28.4]} 30. Bc3 {[%clk 0:01:32.1]}
30... Rb6 {[%clk 0:00:28.7]} 31. Bb3 {[%clk 0:01:21.9]} 31... Nf3 {[%clk
0:00:29.1]} 32. e5 {[%clk 0:01:01.1]} 32... Bxe5 {[%clk 0:00:21.4]} 33. Nxf3
{[%clk 0:00:47.8]} 33... Bxc3 {[%clk 0:00:16.7]} 34. Ng5 {[%clk 0:00:49.1]}
34... Bf6 {[%clk 0:00:15]} 35. Rde1 {[%clk 0:00:45]} 35... Qb8 {[%clk
0:00:14.2]} 36. Bxf7+ {[%clk 0:00:41.7]} 36... Kg7 {[%clk 0:00:13.8]} 37. Ne6+
{[%clk 0:00:38.1]} 37... Kh8 {[%clk 0:00:12.8]} 38. Rxf6 {[%clk 0:00:34.7]}
38... Nxf6 {[%clk 0:00:11.6]} 39. Nxf8 {[%clk 0:00:34.9]} 39... Qxf8 {[%clk
0:00:12.3]} 40. d7 {[%clk 0:00:31.3]} 40... Nxd7 {[%clk 0:00:12.5]} 41. Re8
{[%clk 0:00:31.7]} 1-0